Cogmind - Beta 16.1 @@@ ROGUE MODE // 2026.02.20 @ 07:04:58 Player: ae Result: Destroyed by B-86 Titan with Hardcell Cannon Performance ------------- Evolutions (5) 2500 Regions Visited (12) 2400 Robots Destroyed (88) 440 Value Destroyed (2787) 2787 Prototype IDs (49) 980 Alien Tech Used (0) 0 Bonus (1901) 1901 TOTAL SCORE: 11008 Bonus ------- High Alert Combat Kills 156 Follower Combat Kills 347 Aligned with FarCom 300 Met Warlord at Base 500 MAIN.C Attacked Warlord 500 Warlord Defense Kills 160 Friendly Fire -62 Cogmind --------- Core Integrity 0/1000 Matter 117/300 Energy 70/100 System Corruption 0% Temperature Cool (0) Movement Core (450) Ox8 Location -5/Warlord Parts ------- > --- POWER (1) -------- (None) > --- PROPULSION (2) --- (None) > --- UTILITY (12) ----- Lightpack 2.0 Transport Network Coupler Makeshift Salvage Targeting Computer Makeshift Salvage Targeting Computer Makeshift Salvage Targeting Computer Advanced Target Analyzer Hardened Medium Armor Plating Centrium Medium Armor Plating Advanced Hacking Suite > --- WEAPON (2) ------- Advanced Remote Datajack > --- INVENTORY (40) --- Makeshift Power Source Makeshift Power Source Micro Fission Core Micro Antimatter Reactor Cesium-ion Thruster Cesium-ion Thruster Cesium-ion Thruster Cooled VTOL Module Impulse Thruster Array Medium Storage Unit Makeshift Utility Shielding Makeshift Utility Shielding Relay Coupler [NC] (47) Relay Coupler [NC] (32) Relay Coupler [NC] (31) Relay Coupler [NC] (38) Relay Coupler [Grunt] (39) Relay Coupler [Brawler] (22) Backup Laser III Vortex Driver (30) Vortex Driver (26) Battle Rifle Enhanced Gauss Cannon Enhanced Gauss Cannon Peak State ------------ > --- POWER ------------ Micro Antimatter Reactor > --- PROPULSION ------- (None) > --- UTILITY ---------- Lightpack 2.0 Transport Network Coupler Makeshift Salvage Targeting Computer Makeshift Salvage Targeting Computer Makeshift Salvage Targeting Computer Advanced Target Analyzer Makeshift Utility Shielding Hardened Medium Armor Plating Centrium Medium Armor Plating Advanced Hacking Suite > --- WEAPON ----------- Vortex Driver > --- INVENTORY -------- Makeshift Power Source Makeshift Power Source Micro Fission Core Cesium-ion Thruster Cesium-ion Thruster Cesium-ion Thruster Cooled VTOL Module Impulse Thruster Array Medium Storage Unit Makeshift Utility Shielding Relay Coupler [NC] Relay Coupler [NC] Relay Coupler [NC] Relay Coupler [NC] Relay Coupler [Swarmer] Relay Coupler [Grunt] Relay Coupler [Brawler] Backup Laser III Backup Laser III Vortex Driver Battle Rifle Enhanced Gauss Cannon Enhanced Gauss Cannon Advanced Remote Datajack [Rating: 98] Favorites ----------- Power Improved Ion Engine Engine Improved Ion Engine Power Core Enhanced Nuclear Core Reactor Micro Antimatter Reactor Propulsion Light Treads Treads Light Treads Wheel Compact Wheel Flight Unit Nuclear Pulse Array Utility Medium Storage Unit Device Heat Sink Storage Medium Storage Unit Processor Transport Network Coupler Hackware Hacking Suite Protection Light Armor Plating Weapon Katana Energy Gun Advanced Beam Rifle Energy Cannon Vortex Driver Ballistic Gun Heavy Assault Rifle Ballistic Cannon Enhanced Gauss Cannon Launcher Improved Grenade Launcher Special Weapon Improved Remote Datajack Slashing Weapon Katana Build | -11 -10 -10 -10 -9 -8 -7 -7 -7 -7 -5 -5 -5 ------- Run | Yrd Mat Min Exi Min Mat Fac Sto Rec Scr Fac Upp War Slots Evolved 10 | . . . . . 4 2 . . . 4 . . Power . | . . . . . . . . . . . . . Propulsion . | . . . . . . . . . . . . . Utility 10 | . . . . . 4 2 . . . 4 . . Weapon . | . . . . . . . . . . . . . Parts Attached 80 | 8 1 . . 1 17 3 1 . 1 32 1 15 Power 8 | 1 . . . . 2 . . . . 3 . 2 Engine 5 | 1 . . . . 2 . . . . 1 . 1 Core 2 | . . . . . . . . . . 2 . . Reactor 1 | . . . . . . . . . . . . 1 Propulsion 13 | 2 . . . . 4 . 1 . . 5 1 . Treads 8 | 2 . . . . 3 . 1 . . 2 . . Leg . | . . . . . . . . . . . . . Wheel 2 | . . . . . 1 . . . . 1 . . Hover . | . . . . . . . . . . . . . Flight 3 | . . . . . . . . . . 2 1 . Utility 41 | 3 1 . . . 7 2 . . 1 18 . 9 Device 16 | 2 . . . . 3 2 . . . 8 . 1 Storage 5 | 1 1 . . . 2 . . . . 1 . . Processor 8 | . . . . . 1 . . . 1 2 . 4 Hackware 2 | . . . . . . . . . . 1 . 1 Protection 10 | . . . . . 1 . . . . 6 . 3 Artifact . | . . . . . . . . . . . . . Weapon 18 | 2 . . . 1 4 1 . . . 6 . 4 Energy Gun 4 | 2 . . . . 2 . . . . . . . Energy Cannon 1 | . . . . . . . . . . . . 1 Ballistic Gun 2 | . . . . . 1 . . . . 1 . . Ballistic Cannon 1 | . . . . . . . . . . . . 1 Launcher 5 | . . . . 1 . . . . . 4 . . Special Weapon 3 | . . . . . 1 . . . . . . 2 Impact Weapon . | . . . . . . . . . . . . . Slashing Weapon 2 | . . . . . . 1 . . . 1 . . Piercing Weapon . | . . . . . . . . . . . . . Special Melee Weapon . | . . . . . . . . . . . . . Unidentified Prototypes 6 | . . . . . 1 . . . . 4 . 1 Parts Lost 40 | . . 1 . . 10 . . . . 24 . 5 Power 5 | . . . . . 2 . . . . 1 . 2 Propulsion 7 | . . . . . 3 . . . . 3 . 1 Utility 18 | . . 1 . . 1 . . . . 15 . 1 Weapon 10 | . . . . . 4 . . . . 5 . 1 Highest Loss Streak 9 | . . 1 . . 9 . . . . 7 . 3 To Critical Strikes 1 | . . . . . . . . . . 1 . . Average Backups 8 | 5 8 8 8 8 6 7 8 8 7 6 2 21 Power . | . 1 1 1 2 . . . . . . . 2 Propulsion 2 | 3 4 4 1 1 . 2 3 3 3 3 1 3 Utility 1 | . 1 1 1 2 1 1 1 1 1 1 1 8 Weapon 3 | 1 2 2 3 3 4 4 4 4 3 1 . 5 Tool/Special . | . . . . . . . . . . . . . Unused Backups 38 | . . . 3 . 8 2 . . 2 1 . 22 Power 4 | . . . . . 1 . . . . . . 3 Propulsion 9 | . . . 3 . . . . . . . . 6 Utility 9 | . . . . . . . . . . . . 9 Weapon 16 | . . . . . 7 2 . . 2 1 . 4 Tool/Special . | . . . . . . . . . . . . . Average Slot Usage (%) 88 | . 100 100 100 100 68 90 100 99 99 90 17 44 Engine 6 | . 14 14 14 14 5 7 7 7 7 . . 3 Core 1 | . . . . . . . . . . 4 . . Treads 14 | . 28 28 28 28 13 15 15 15 15 9 . . Device 21 | . 14 14 14 14 13 29 38 38 35 20 . . Storage 7 | . 14 14 14 14 10 7 7 7 7 5 5 5 Processor 11 | . . . . . 5 7 7 7 9 19 5 20 Protection 6 | . . . . . 1 7 7 7 7 12 . . Energy Gun 8 | . 28 28 28 17 8 7 7 6 6 . . 3 Launcher 2 | . . . . 10 1 . . . . 4 . . Slashing Weapon 3 | . . . . . . 1 7 7 7 4 . . Peak Build Rating 98 | 9 8 9 13 13 24 32 35 35 37 73 43 98 Average Rating 40 | 5 8 8 12 13 16 26 34 34 35 61 43 72 On Entrance 21 | . 8 8 9 13 13 23 32 35 31 37 32 43 Avg Prop Armor Cover (%) 2 | . . . . . . . . . . 2 . . Naked Turns 8 | . . . . . 8 . . . . . . . Heaviest Build 101 | 14 19 19 19 20 27 32 31 31 31 101 5 45 Greatest Support 66 | 40 40 40 40 40 46 46 54 54 54 66 13 13 Greatest Overweight (x) 14 | . . . . . 6 . . . . 6 . 14 Average Overweight (x) . | . . . . . . . . . . . . . Largest Inventory Capacity 40 | 8 10 10 10 10 10 10 10 10 10 40 40 40 Average Capacity 13 | 7 9 10 10 10 9 10 10 10 10 10 40 40 Most Carried 30 | 8 9 9 10 10 10 10 10 10 10 10 2 30 Average Carried 10 | 5 8 8 9 10 8 9 10 10 9 9 2 21 Final Capacity 40 | 8 10 10 10 10 10 10 10 10 10 40 40 40 Final Carried 25 | 8 9 9 10 10 10 10 10 10 10 4 2 25 Class Distribution -------------------- 38% | Scavenger-Mutant 19% | Scavenger-Assassin 17% | Mutant 11% | Hauler-Mutant 6% | Skirmisher Dominant Class ---------------- Mutant | -10/Materials Mutant | -10/Mines Mutant | -10/Exiles Skirmisher | -9/Mines Scavenger-Mutant | -8/Materials Scavenger-Mutant | -7/Factory Scavenger-Mutant | -7/Storage Scavenger-Mutant | -7/Recycling Scavenger-Mutant | -7/Scraptown Scavenger-Assassin | -5/Factory Hauler-Mutant | -5/Upper Caves Hauler-Mutant | -5/Warlord Resources | -11 -10 -10 -10 -9 -8 -7 -7 -7 -7 -5 -5 -5 ----------- Run | Yrd Mat Min Exi Min Mat Fac Sto Rec Scr Fac Upp War Matter Collected 2155 | 280 10 10 . 100 309 62 30 6 10 982 . 356 Remotely 562 | . . . . . 133 62 30 . . 337 . . Salvage Created 3530 | 67 186 98 . 73 330 155 98 69 . 2377 . 77 Parts 161 | 6 16 2 . 7 17 3 2 4 . 99 . 5 Haulers Intercepted 4 | . . . . . 2 . 1 . . 1 . . Recyclers Shooed 4 | . . . . . . . . . . 4 . . Parts Field Recycled . | . . . . . . . . . . . . . Retrieved Matter . | . . . . . . . . . . . . . Parts Self-Destructed . | . . . . . . . . . . . . . Prevented 1 | . . . . . . . . . . . 1 . Parts Restored . | . . . . . . . . . . . . . Kills | -11 -10 -10 -10 -9 -8 -7 -7 -7 -7 -5 -5 -5 ------- Run | Yrd Mat Min Exi Min Mat Fac Sto Rec Scr Fac Upp War Combat Hostiles Destroyed 56 | . 5 2 . 8 5 3 1 1 . 28 . 3 Melee 7 | . . . . . . . 1 . . 5 . 1 Guns 14 | . 5 2 . 1 2 3 . 1 . . . . Cannons 4 | . . . . . 2 . . . . . . 2 AOE 30 | . . . . 7 1 . . . . 22 . . Classes Destroyed 18 | 2 4 . . 1 2 . 1 . . 7 . 1 Worker 8 | . 1 . . 1 . . . . . 6 . . Builder 8 | . . . . . . . . . . 8 . . Tunneler 3 | 1 . . . 1 . . . . . 1 . . Hauler 4 | . . . . . 2 . 1 . . 1 . . Recycler 10 | 1 . . . . 1 . . . . 8 . . Mechanic 1 | . . . . . . . . . . 1 . . Operator 3 | . 2 . . . . . . . . 1 . . Watcher 1 | . . . . . . . . . . 1 . . Swarmer 5 | . 3 . . 2 . . . . . . . . Saboteur 2 | . . . . . . . . . . . . 2 Grunt 20 | . 2 2 . . 1 3 . . . 11 . 1 Brawler 1 | . . . . . . . 1 . . . . . Protector 1 | . . . . . . . . . . 1 . . Sentry 6 | . . . . . 4 . . 1 . 1 . . Specialist 2 | . . . . . . . . . . 2 . . Hunter 3 | . . . . . . . . . . 3 . . Programmer 10 | . . . . . . . . . . 10 . . Assembled 6 | . . . . 6 . . . . . . . . Best Kill Streak 17 | 1 3 2 . 3 5 3 1 1 . 17 . 2 Combat Bots Only 7 | . 3 2 . 3 3 3 1 1 . 7 . 2 Max Kills in Single Turn 4 | 1 2 1 . 2 2 1 1 1 . 4 . 1 Gunslinging . | . . . . . . . . . . . . . Exploded 3 | . . . . 2 1 . . . . 3 . . Melee 1 | . . . . . . . 1 . . 1 . 1 Uniques/NPCs Destroyed . | . . . . . . . . . . . . . Combat | -11 -10 -10 -10 -9 -8 -7 -7 -7 -7 -5 -5 -5 -------- Run | Yrd Mat Min Exi Min Mat Fac Sto Rec Scr Fac Upp War Hostile Shots Fired 461 | . 14 7 . 5 83 11 14 18 . 275 12 22 Missed 127 | . 3 2 . 1 22 3 6 6 . 71 6 7 Hits 334 | . 11 5 . 4 61 8 8 12 . 204 6 15 Melee 14 | . . . . . . . 2 . . 10 . 2 Projectile 320 | . 11 5 . 4 61 8 6 12 . 194 6 13 AOE 5 | . . . . . . . . . . 2 . 3 Critical Strikes 13 | . . . . . . 1 . . . 10 1 1 Damage Taken 7201 | . 96 135 . 96 974 121 107 96 . 4719 115 742 Core 1508 | . 7 . . 4 399 31 39 6 . 804 37 181 Absorbed by Shields 4 | . . . . . . . . . . 4 . . Ignored by Resistances 187 | . . . . . . . . . . 187 . . Regen/Repaired (Parts) 41 | . . . . . . . . . . . . 41 Core Remaining (%) 77 | 100 . . . 95 27 . . . 89 . . . Volleys Fired 170 | 5 23 5 . 11 22 14 . 1 . 41 . 48 Largest 2 | 2 2 2 . 2 2 2 . 1 . 2 . 1 Hottest 140 | 90 90 90 . 90 140 84 . 61 . 86 . 100 Shots Fired 255 | 10 44 10 . 19 44 28 . 1 . 51 . 48 Gun 144 | 10 44 10 . 12 39 28 . 1 . . . . Cannon 6 | . . . . . . . . . . . . 6 Launcher 60 | . . . . 7 2 . . . . 51 . . Special 45 | . . . . . 3 . . . . . . 42 Kinetic 29 | . . . . . 13 14 . . . . . 2 Thermal 120 | 10 44 10 . 12 29 14 . 1 . . . . Explosive 43 | . . . . 7 2 . . . . 34 . . Electromagnetic 17 | . . . . . . . . . . 17 . . Entropic 4 | . . . . . . . . . . . . 4 Robot Hit Streak 42 | 7 6 5 . 3 7 18 . 19 . 42 . 16 Robot Miss Streak 4 | 1 4 1 . 2 2 3 . . . 2 . 3 Penetration Max . | . . . . . . . . . . . . . Secondary Targets . | . . . . . . . . . . . . . Shots Hit Robots 247 | 8 26 8 . 10 31 21 6 3 . 96 . 38 Core Hits 170 | 3 14 5 . 12 16 7 3 2 . 106 . 2 Critical Kills . | . . . . . . . . . . . . . Critical Parts Destroyed . | . . . . . . . . . . . . . Critical Strikes 14 | . . . . . . 2 1 . . 10 . 1 Burn 2 | . . . . . . 2 . . . . . . Sever 11 | . . . . . . . 1 . . 10 . . Sunder 1 | . . . . . . . . . . . . 1 Melee Attacks 106 | . . . . . . 1 9 2 . 94 . . Thermal 3 | . . . . . . . . . . 3 . . Impact . | . . . . . . . . . . . . . Slashing 103 | . . . . . . 1 9 2 . 91 . . Piercing . | . . . . . . . . . . . . . Sneak Attacks 15 | . . . . . . . 1 . . 14 . . Combat Hostiles . | . . . . . . . . . . . . . Follow-up Attacks 1 | . . . . . . . . . . 1 . . Damage Inflicted 8783 | 92 329 95 . 459 583 352 187 80 . 6328 . 278 Guns 1323 | 92 329 95 . 71 364 352 . 20 . . . . Cannons 278 | . . . . . . . . . . . . 278 Explosions 4830 | . . . . 388 171 . . . . 4271 . . Melee 2294 | . . . . . . . 187 60 . 2047 . . Ramming 10 | . . . . . . . . . . 10 . . Kinetic 345 | . . . . . 157 152 . . . . . 36 Thermal 1125 | 92 329 95 . 71 255 200 . 20 . 63 . . Explosive 3951 | . . . . 388 171 . . . . 3392 . . Electromagnetic 816 | . . . . . . . . . . 816 . . Impact . | . . . . . . . . . . . . . Slashing 2294 | . . . . . . . 187 60 . 2047 . . Piercing . | . . . . . . . . . . . . . Entropic 242 | . . . . . . . . . . . . 242 Highest Corruption 32 | . . . . . . . 1 1 . 32 32 32 Average Corruption 9 | . . . . . . . 1 1 . 13 32 32 Corruption Purged 1 | . . . . . . . . . . 1 . . Corruption Blocked . | . . . . . . . . . . . . . Effects 49 | . . . . . . . 1 4 . 42 1 1 Message Errors 12 | . . . . . . . . 3 . 9 . . Matter Fused 12 | . . . . . . . 1 . . 9 1 1 Heat Flow Errors 8 | . . . . . . . . . . 8 . . Energy Discharges 1 | . . . . . . . . . . 1 . . Parts Rejected 2 | . . . . . . . . . . 2 . . Parts Fused 1 | . . . . . . . . . . 1 . . Data Loss (minor) 6 | . . . . . . . . 1 . 5 . . Alerts 1 | . . . . . . . . . . 1 . . Misdirections 6 | . . . . . . . . . . 6 . . Overload Shots . | . . . . . . . . . . . . . Overflow Damage 303 | . . . . 46 . . . . . 250 . 7 Projectiles 7 | . . . . . . . . . . . . 7 Explosions 97 | . . . . 46 . . . . . 51 . . Melee 199 | . . . . . . . . . . 199 . . Knockbacks . | . . . . . . . . . . . . . Impact . | . . . . . . . . . . . . . Kinetic . | . . . . . . . . . . . . . Secondary . | . . . . . . . . . . . . . Self-Inflicted Damage 171 | . . . . 44 4 . . . . 123 . . Shots 7 | . . . . 2 1 . . . . 4 . . Rammed 4 | . . . . . . . . . . 4 . . Targets Rammed 4 | . . . . . . . . . . 4 . . Kicked . | . . . . . . . . . . . . . Crushed . | . . . . . . . . . . . . . Highest Temperature 371 | 60 162 163 . 30 68 20 . . . 371 2 113 Average Temperature 94 | 28 47 90 . 9 26 6 . . . 137 2 49 Received Heat Transfer 1239 | . 24 42 . . 315 90 . 30 . 585 66 87 Effects 6 | . . . . . . . . . . 6 . . Shutdowns 1 | . . . . . . . . . . 1 . . Interference 4 | . . . . . . . . . . 4 . . Matter Decay 1 | . . . . . . . . . . 1 . . Siege Activations . | . . . . . . . . . . . . . Martial Activations . | . . . . . . . . . . . . . Shielding Activations . | . . . . . . . . . . . . . Robots Disrupted . | . . . . . . . . . . . . . Combat Hostiles . | . . . . . . . . . . . . . Robots Corrupted 1 | . . . . . . . . . . 1 . . Combat Hostiles 1 | . . . . . . . . . . 1 . . Parts Fried 5 | . . . . . . . . . . 5 . . Impact Corruptions . | . . . . . . . . . . . . . Robots Melted . | . . . . . . . . . . . . . Combat Hostiles . | . . . . . . . . . . . . . Parts Melted 5 | 1 . 1 . . . 2 . 1 . . . . Heat Transferred 2754 | 236 856 248 . 162 597 518 . 37 . 100 . . Parts Sabotaged 5 | . . . . . . . . . . 2 . 3 Parts Stolen . | . . . . . . . . . . . . . Parts Stripped . | . . . . . . . . . . . . . Power Chain Reactions 3 | . . . . . . . . . . 3 . . Alert | -11 -10 -10 -10 -9 -8 -7 -7 -7 -7 -5 -5 -5 ------- Run | Yrd Mat Min Exi Min Mat Fac Sto Rec Scr Fac Upp War Maximum Alert Level 2 | . . . . . . . 1 . . 2 . . Low Security (%) 78 | 100 100 100 . 100 100 100 99 100 . 54 . . Level 1 11 | . . . . . . . . . . 23 . . Level 2 10 | . . . . . . . . . . 22 . . Level 3 . | . . . . . . . . . . . . . Level 4 . | . . . . . . . . . . . . . Level 5 . | . . . . . . . . . . . . . High Security . | . . . . . . . . . . . . . Max Security . | . . . . . . . . . . . . . Peak Influence 653 | 5 100 40 . 95 72 60 199 73 . 653 . . Initial 73 | . . 27 . . 1 . . 73 . . . . Average 124 | . 29 7 . 16 16 14 63 18 . 238 . . Influence Increases 2710 | 10 163 50 . 153 212 81 369 92 . 1430 . 150 Destroy 0b10 Robot/C 1200 | . 100 40 . 80 100 60 180 40 . 540 . 60 Destroy 0b10 Robot/NC 200 | 10 15 . . 10 15 . 5 . . 145 . . Destroy Leader 282 | . 30 10 . 10 44 10 52 . . 126 . . Allied During Kill 119 | . . . . 5 . . 98 8 . 8 . . Successful Hack 90 | . 3 . . . 24 10 17 14 . 22 . . Select Force Hacks 30 | . . . . . . . . 30 . . . . Disable Machine 90 | . . . . . . . 15 . . 75 . . Destroy Structure 459 | . . . . 48 14 1 2 . . 394 . . Partial Spotted 15 | . . . . . 15 . . . . . . . Lose Combat Pursuer 225 | . 15 . . . . . . . . 120 . 90 Influence Decreases 2696 | 10 93 120 . 148 217 81 180 281 . 886 212 468 Entered New Map 697 | . . 43 . . 4 . . 116 . . 202 332 Time Decay 1403 | 10 85 67 . 148 155 81 100 165 . 466 10 116 Lost Part 313 | . . 10 . . 43 . . . . 240 . 20 Lost Ally 125 | . . . . . 15 . 80 . . 30 . . Purge Threat 158 | . 8 . . . . . . . . 150 . . Squads Dispatched 30 | . 2 . . . 2 2 5 . . 19 . . Investigation 3 | . . . . . . . 2 . . 1 . . Extermination 8 | . . . . . . 1 1 . . 6 . . Reinforcement 14 | . 2 . . . 1 1 . . . 10 . . Assault 1 | . . . . . . . . . . 1 . . Garrison 4 | . . . . . 1 . 2 . . 1 . . Intercept . | . . . . . . . . . . . . . Searches Triggered . | . . . . . . . . . . . . . Construction Impeded 5 | . . . . . . . . . . 5 . . Haulers Reinforced . | . . . . . . . . . . . . . Active Scanning Responses . | . . . . . . . . . . . . . Cargo Convoy Interrupts 1 | . . . . . . . . . . 1 . . Stealth | -11 -10 -10 -10 -9 -8 -7 -7 -7 -7 -5 -5 -5 --------- Run | Yrd Mat Min Exi Min Mat Fac Sto Rec Scr Fac Upp War Distress Signals 2 | . 1 . . . 1 . . . . . . . Communications Jammed . | . . . . . . . . . . . . . Distress Signals . | . . . . . . . . . . . . . Times Spotted 194 | . 12 2 . 11 10 6 7 2 . 57 4 83 Peak Tracking Total 18 | . 4 2 . 3 6 3 2 1 . 10 4 18 Tactical Retreats 6 | . 1 . . . . . . . . 2 . 3 Traps | -11 -10 -10 -10 -9 -8 -7 -7 -7 -7 -5 -5 -5 ------- Run | Yrd Mat Min Exi Min Mat Fac Sto Rec Scr Fac Upp War Traps Triggered 6 | . . 1 . . . . . . . 5 . . Indirectly . | . . . . . . . . . . . . . Trap Hack Attempts . | . . . . . . . . . . . . . Triggered . | . . . . . . . . . . . . . Disarmed . | . . . . . . . . . . . . . Reprogrammed . | . . . . . . . . . . . . . Reused . | . . . . . . . . . . . . . Traps Extracted . | . . . . . . . . . . . . . Installed . | . . . . . . . . . . . . . Triggered . | . . . . . . . . . . . . . Machines | -11 -10 -10 -10 -9 -8 -7 -7 -7 -7 -5 -5 -5 ---------- Run | Yrd Mat Min Exi Min Mat Fac Sto Rec Scr Fac Upp War Machines Disabled 6 | . . . . . . . 1 . . 5 . . Max in Single Turn 2 | . . . . . . . 1 . . 2 . . Machines Repaired . | . . . . . . . . . . . . . Machines Dismantled . | . . . . . . . . . . . . . Machines Sabotaged . | . . . . . . . . . . . . . Overloaded Fab Kills . | . . . . . . . . . . . . . Hacking | -11 -10 -10 -10 -9 -8 -7 -7 -7 -7 -5 -5 -5 --------- Run | Yrd Mat Min Exi Min Mat Fac Sto Rec Scr Fac Upp War Machines Accessed 35 | . 2 1 2 . 3 2 5 8 . 9 . 3 Terminals 17 | . 1 . . . 2 2 3 4 . 5 . . Fabricators 1 | . . . . . . . . . . 1 . . Repair Stations 1 | . . . . . . . . . . 1 . . Recycling Units 5 | . 1 . . . . . 1 3 . . . . Scanalyzers 2 | . . . . . 1 . . . . 1 . . Garrison Access 2 | . . . . . . . 1 . . 1 . . Total Hacks 87 | . 9 1 2 . 7 9 16 15 . 25 . 3 Successful 36 | . 5 1 2 . 3 4 6 4 . 8 . 3 Failed 51 | . 4 . . . 4 5 10 11 . 17 . . Catastrophic 10 | . 2 . . . . 1 2 2 . 3 . . Database Lockouts . | . . . . . . . . . . . . . Manual 59 | . 6 . 1 . 2 7 17 12 . 13 . 1 Terminals 51 | . 7 . . . 5 9 11 6 . 13 . . Fabricators 5 | . . . . . . . . . . 5 . . Repair Stations 3 | . . . . . . . . . . 3 . . Recycling Units 12 | . 2 . . . . . 2 8 . . . . Scanalyzers 4 | . . . . . 2 . . . . 2 . . Garrison Access 5 | . . . . . . . 3 . . 2 . . Terminal Hacks 16 | . 1 1 2 . 1 3 2 1 . 2 . 3 Record 2 | . . . 1 . . . . . . . . 1 Open Door 3 | . . 1 . . . . . . . . . 2 Branch Access Points 2 | . . . . . 1 1 . . . . . . Terminal Index 1 | . . . . . . . . . . 1 . . Unreport Threat 2 | . 1 . . . . . . . . 1 . . Locate Traps 1 | . . . . . . 1 . . . . . . Recall Investigation 1 | . . . . . . . 1 . . . . . Zone Layout 2 | . . . . . . 1 1 . . . . . Proto ID Catalog 1 | . . . 1 . . . . . . . . . Release Object 1 | . . . . . . . . 1 . . . . Fabricator Hacks 1 | . . . . . . . . . . 1 . . Network Status 1 | . . . . . . . . . . 1 . . Repair Station Hacks 1 | . . . . . . . . . . 1 . . Scan Component 1 | . . . . . . . . . . 1 . . Recycling Unit Hacks 1 | . 1 . . . . . . . . . . . Report Inventory 1 | . 1 . . . . . . . . . . . Scanalyzer 3 | . . . . . 1 . . . . 2 . . Retrieve Study 3 | . . . . . 1 . . . . 2 . . Garrison Access Hacks . | . . . . . . . . . . . . . Unauthorized Hacks 14 | . 3 . . . 1 1 4 3 . 2 . . Terminals 11 | . 3 . . . 1 1 3 1 . 2 . . Track 1 | . 1 . . . . . . . . . . . Assimilate 1 | . . . . . . . . . . 1 . . Botnet 8 | . 1 . . . 1 1 3 1 . 1 . . Operators 1 | . 1 . . . . . . . . . . . Fabricators . | . . . . . . . . . . . . . Repair Stations . | . . . . . . . . . . . . . Recycling Units 3 | . . . . . . . 1 2 . . . . Recyclers 1 | . . . . . . . 1 . . . . . Mask 1 | . . . . . . . . 1 . . . . Tunnel 1 | . . . . . . . . 1 . . . . Scanalyzers . | . . . . . . . . . . . . . Garrison Access . | . . . . . . . . . . . . . Data Cores Recovered 1 | . . . . . . . . . . 1 . . Used 1 | . . . . . . . . . . 1 . . Hacking Detections 26 | . 2 . . . 3 2 6 5 . 8 . . Full Trace Events 3 | . . . . . . . 2 . . 1 . . Feedback Events 1 | . . . . . . . 1 . . . . . Corruption 1 | . . . . . . . 1 . . . . . Feedback Blocked . | . . . . . . . . . . . . . Robot Schematics Acquired . | . . . . . . . . . . . . . Robots Built . | . . . . . . . . . . . . . Authchips . | . . . . . . . . . . . . . Time . | . . . . . . . . . . . . . Total Robot Build Rating . | . . . . . . . . . . . . . Part Schematics Acquired . | . . . . . . . . . . . . . Parts Built . | . . . . . . . . . . . . . Authchips . | . . . . . . . . . . . . . Time . | . . . . . . . . . . . . . Total Part Build Rating . | . . . . . . . . . . . . . Part Studies Acquired 3 | . . . . . 1 . . . . 2 . . Parts Repaired . | . . . . . . . . . . . . . Time . | . . . . . . . . . . . . . Parts Recycled . | . . . . . . . . . . . . . Recycled Matter . | . . . . . . . . . . . . . Retrieved Matter . | . . . . . . . . . . . . . Retrieved Components . | . . . . . . . . . . . . . Parts Scanalyzed . | . . . . . . . . . . . . . Part Schematics Acquired . | . . . . . . . . . . . . . Parts Damaged . | . . . . . . . . . . . . . Bothacking | -11 -10 -10 -10 -9 -8 -7 -7 -7 -7 -5 -5 -5 ------------ Run | Yrd Mat Min Exi Min Mat Fac Sto Rec Scr Fac Upp War Used RIF Installer . | . . . . . . . . . . . . . Robots Hacked 10 | . . . . . . . . . . . . 10 Non-combat 1 | . . . . . . . . . . . . 1 Combat 9 | . . . . . . . . . . . . 9 Robot Hacks Applied 10 | . . . . . . . . . . . . 10 parse_system 10 | . . . . . . . . . . . . 10 Relay Couplers Released 1 | . . . . . . . . . . 1 . . Machine Destruction 1 | . . . . . . . . . . 1 . . Fabnet Peak Effective % . | . . . . . . . . . . . . . Robots Rewired . | . . . . . . . . . . . . . Allies Hacked 2 | . . . . . . . . . . 2 . . Hacks Repelled . | . . . . . . . . . . . . . Allies | -11 -10 -10 -10 -9 -8 -7 -7 -7 -7 -5 -5 -5 -------- Run | Yrd Mat Min Exi Min Mat Fac Sto Rec Scr Fac Upp War Total Allies 11 | . . . . 1 . . 10 . . . . . Largest Group 10 | . . . . 1 1 . 10 3 3 3 . . Highest-Rated Group 173 | . . . . 31 31 . 173 61 61 61 . . Highest-Rated Ally 31 | . . . . 31 31 . 29 29 29 29 . . Total Orders 4 | . . . . . . . . . 4 . . . ROAM 1 | . . . . . . . . . 1 . . . FOLLOW 3 | . . . . . . . . . 3 . . . Ally Attacks 109 | . . . . 13 1 . 70 6 . 19 . . Total Damage 1389 | . . . . 151 . . 892 84 . 262 . . Kills 14 | . . . . 3 . . 9 1 . 1 . . Allies Corrupted 2 | . . . . . . . 1 . . 1 . . Allies Melted . | . . . . . . . . . . . . . Intel | -11 -10 -10 -10 -9 -8 -7 -7 -7 -7 -5 -5 -5 ------- Run | Yrd Mat Min Exi Min Mat Fac Sto Rec Scr Fac Upp War Active Infowar (turns) 9661 | 86 296 339 729 624 483 392 284 514 1911 2911 21 1071 Optics 1312 | . . . . . . . . . . 1312 . . Terrain 1625 | 4 . 187 729 624 81 . . . . . . . Seismic 530 | 82 296 152 . . . . . . . . . . T.N.C. 7424 | . . . . . 402 392 284 514 1911 2829 21 1071 Machine Analysis 2389 | . . . . . . . . . . 2389 . . Cloaking 1377 | . . . . . . . . . . 1377 . . Robot Analysis Total . | . . . . . . . . . . . . . Derelict Logs Recovered 2 | . . 1 . 1 . . . . . . . . Drone Launches . | . . . . . . . . . . . . . Drone Recoveries . | . . . . . . . . . . . . . Exploration | -11 -10 -10 -10 -9 -8 -7 -7 -7 -7 -5 -5 -5 ------------- Run | Yrd Mat Min Exi Min Mat Fac Sto Rec Scr Fac Upp War Turns Passed 9858 | 154 296 340 729 624 611 392 284 514 1911 2911 21 1071 Spaces Moved 6135 | 81 133 179 454 290 289 207 126 298 1109 1429 50 1490 Core 61 | 9 . . . . 26 . . . . 6 . 20 Treads 4344 | 72 133 179 454 290 247 207 126 298 1109 1229 . . Legs . | . . . . . . . . . . . . . Wheels 79 | . . . . . 16 . . . . 63 . . Hover . | . . . . . . . . . . . . . Flight 1651 | . . . . . . . . . . 131 50 1470 Fastest Speed 26 | 50 160 160 160 160 50 160 160 160 160 26 40 40 Average Speed 129 | 147 160 160 160 160 153 160 160 160 160 156 40 42 Slowest Speed 750 | 160 160 160 160 160 350 160 160 160 160 400 40 750 Overloaded Moves 20 | . . . . . . . . . . 20 . . Propulsion Burnouts . | . . . . . . . . . . . . . Robots Hopped 8 | . . . . . . . . . . 8 . . Potential Cave-ins . | . . . . . . . . . . . . . Cave-ins Triggered 1 | . . . . . . . . . . 1 . . Exploration Rate (%) 43 | 4 32 45 88 71 24 5 33 64 60 30 12 91 Regions Visited 12 Branch Regions 8 Pre-discovered Areas 2 | . . . 1 . . . . 1 . . . . Known Exits Taken 2 | . . . . 1 . 1 . . . . . . Unknown Exits Taken 10 | 1 1 1 1 . 1 . 1 1 1 1 1 . Scrap Searched 5 | . . 1 . . . . . . 4 . . . Spaces Dug 22 | . . . . . . 1 1 . . 20 . . Terrain Destroyed 322 | . . . . 54 11 1 1 . . 249 . 6 Melee 22 | . . . . . . 1 1 . . 20 . . Projectile 6 | . . . . . . . . . . . . 6 AOE 294 | . . . . 54 11 . . . . 229 . . Terrain Rammed . | . . . . . . . . . . . . . Walls Destroyed . | . . . . . . . . . . . . . Machines Disabled . | . . . . . . . . . . . . . Actions | -11 -10 -10 -10 -9 -8 -7 -7 -7 -7 -5 -5 -5 --------- Run | Yrd Mat Min Exi Min Mat Fac Sto Rec Scr Fac Upp War Total 7665 | 102 173 223 458 430 407 239 196 332 1247 1889 50 1919 Wait 1035 | . 15 38 . 127 49 7 60 29 131 263 . 316 Move 6108 | 80 132 178 453 289 288 206 125 297 1108 1413 49 1490 Hop 7 | . . . . . . . . . . 7 . . Pick Up 69 | 8 1 1 2 . 15 4 . 1 3 2 . 32 Fast Attach 57 | 7 . . . . 10 2 . . 1 30 . 7 Attach 32 | 1 . 1 . . 7 . . . 1 6 1 15 Detach 18 | 1 . . . . 1 . . . . 5 . 11 Swap 21 | . 1 . . 3 4 1 1 . . 11 . . Drop 39 | . 1 . 3 . 11 4 1 2 3 14 . . Fire 170 | 5 23 5 . 11 22 14 . 1 . 41 . 48 Melee 105 | . . . . . . 1 9 2 . 93 . . Ram 4 | . . . . . . . . . . 4 . . Kick . | . . . . . . . . . . . . . Crush . | . . . . . . . . . . . . . Escape Stasis . | . . . . . . . . . . . . . Rewire . | . . . . . . . . . . . . . Trap . | . . . . . . . . . . . . . Miscellaneous . | . . . . . . . . . . . . . Route ------- -11/Scrapyard -10/Materials -10/Mines (discovered 3 exits: [*Mat] / *Exi / [*Sub]) -10/Exiles -9/Mines -8/Materials -7/Factory (discovered 3 exits: *Sto / Low x2) -7/Storage -7/Recycling (discovered 2 exits: *Fac / *Scr) -7/Scraptown -5/Factory (discovered 2 exits: [*Upp] / [*Ext]) -5/Upper Caves -5/Warlord History --------- Turn | Location | Event 18 | -11/Scrapyard | Discovered new exit (range 16) 155 | -11/Scrapyard | Entered Materials 313 | -10/Materials | Build established: Mutant 434 | -10/Materials | Discovered new exit (range 9) 451 | -10/Materials | Entered Mines 460 | -10/Mines | Met a Derelict who couldn't figure out how to use a Trap Extractor 500 | -10/Mines | Discovered new exit (range 5) 689 | -10/Mines | Learned Materials stockpile data 710 | -10/Mines | Discovered new exit (range 11) 782 | -10/Mines | Deemed a non-threat by the Exiles lab entrance 783 | -10/Mines | Discovered new exit (range 5) 791 | -10/Mines | Entered Exiles 832 | -10/Exiles | Met 8R-AWN 860 | -10/Exiles | Met EX-HEX 903 | -10/Exiles | Met EX-BIN 936 | -10/Exiles | Aligned with FarCom system 938 | -10/Exiles | Given EX-Vault access code 978 | -10/Exiles | Opened EX-Vault 994 | -10/Exiles | Found Lightpack 2.0 1029 | -10/Exiles | Warned to stay clear of 0b10 Research branches 1080 | -10/Exiles | Met EX-DEC 1089 | -10/Exiles | Learned location of Zion (-7) 1154 | -10/Exiles | Visited The Gauntlet 1505 | -10/Exiles | Discovered new exit (range 11) 1520 | -10/Exiles | Left Exiles lab with Lightpack 2.0 1520 | -10/Exiles | Entered Mines 1521 | -9/Mines | Met a Derelict testing a Signal Generator 1521 | -9/Mines | Assembled infested the area 1816 | -9/Mines | Build established: Skirmisher 2065 | -9/Mines | Identified exit to Materials 2144 | -9/Mines | Entered Materials 2144 | -8/Materials | Accompanied by 1 ally 2144 | -8/Materials | Evolved 4 slots: Utility x4 2245 | -8/Materials | Core integrity fell below 50% 2272 | -8/Materials | Lost 9 parts (2p3n1u3w) 2359 | -8/Materials | Garrison activated, responded to threat 2723 | -8/Materials | Build established: Scavenger-Mutant 2750 | -8/Materials | Discovered new exit (range 4) 2755 | -8/Materials | Entered Factory 2755 | -7/Factory | Evolved 2 slots: Utility x2 2978 | -7/Factory | Identified exit to Storage 2978 | -7/Factory | Identified exit to Lower Caves 3147 | -7/Factory | Entered Storage 3274 | -7/Storage | Assisted by bots powering up and referring to "LRC-V3" 3308 | -7/Storage | Garrison activated, responded to threat 3341 | -7/Storage | Lost 3 allies 3365 | -7/Storage | Used back door to open Recycling access 3365 | -7/Storage | Discovered new exit (range 5) 3431 | -7/Storage | Entered Recycling 3431 | -7/Recycling | Accompanied by 3 allies 3445 | -7/Recycling | Lost 4 allies 3568 | -7/Recycling | Discovered new exit (range 6) 3874 | -7/Recycling | Scanned before Scraplab entrance 3937 | -7/Recycling | Discovered new exit (range 2) 3945 | -7/Recycling | Entered Scraptown 3945 | -7/Scraptown | Accompanied by 3 allies 3945 | -7/Scraptown | System corruption cleaned by C-Scrubber 4499 | -7/Scraptown | Visited Supply Room 4527 | -7/Scraptown | Visited Red Mages 4607 | -7/Scraptown | Visited Assassins FH 4775 | -7/Scraptown | Visited TADAMA 4807 | -7/Scraptown | Heard Great Nut preacher, LISTEN AND RECITE! 4818 | -7/Scraptown | Visited Spacefarers 4879 | -7/Scraptown | Visited Cyclists 4927 | -7/Scraptown | Visited Awakened 5119 | -7/Scraptown | Discovered new exit (range 11) 5228 | -7/Scraptown | Turned away by UFD registrar 5856 | -7/Scraptown | Entered Factory 5856 | -5/Factory | Accompanied by 3 allies 5856 | -5/Factory | Evolved 4 slots: Utility x4 6607 | -5/Factory | Build established: Scavenger-Assassin 6607 | -5/Factory | Garrison activated, responded to threat 6652 | -5/Factory | Destroyed 7 combat bots 7042 | -5/Factory | Cargo convoy interrupted 7955 | -5/Factory | Crushed by falling debris 7955 | -5/Factory | System corruption reached 10% 7986 | -5/Factory | Lost 4 parts (3u1w) 8256 | -5/Factory | First assault squad dispatched 8299 | -5/Factory | Lost 4 parts (1n2u1w) 8387 | -5/Factory | Found Unknown Protection 8387 | -5/Factory | Identified Hvy. Reactive Plating 8671 | -5/Factory | Lost 5 parts (4u1w) 8699 | -5/Factory | System corruption reached 30% 8707 | -5/Factory | Discovered new exit (range 16) 8731 | -5/Factory | Lost 7 parts (1p1n3u2w) 8755 | -5/Factory | Discovered new exit (range 8) 8760 | -5/Factory | Core integrity fell below 50% 8767 | -5/Factory | Entered Upper Caves 8768 | -5/Upper Caves | Core integrity fell below 20% 8787 | -5/Upper Caves | A Derelict revealed a hidden shortcut to "reach the base" 8788 | -5/Upper Caves | Entered Warlord 8802 | -5/Warlord | System corruption cleaned by Quarantine Array 8925 | -5/Warlord | Met Warlord 8950 | -5/Warlord | Warlord's base attacked by MAIN.C 8978 | -5/Warlord | Build established: Hauler-Mutant 8984 | -5/Warlord | Found Prototype Energy Cannon 8985 | -5/Warlord | Found Prototype Energy Cannon 9166 | -5/Warlord | Warlord forces counterattacked 9183 | -5/Warlord | Lost 4 allies 9199 | -5/Warlord | Opened side exit 9268 | -5/Warlord | Spotted Executioner 9283 | -5/Warlord | P-80 Master assimilated allied LZ-SGE(g) 9314 | -5/Warlord | P-80 Master assimilated allied D9-FSQ(M) 9346 | -5/Warlord | Lost 19 allies 9625 | -5/Warlord | Warlord base infiltrated, sounded retreat 9626 | -5/Warlord | Enhanced Grunt warped into view 9626 | -5/Warlord | Enhanced Grunt warped into view 9626 | -5/Warlord | Enhanced Grunt warped into view 9626 | -5/Warlord | Enhanced Demolisher warped into view 9626 | -5/Warlord | Enhanced Demolisher warped into view 9626 | -5/Warlord | Enhanced Demolisher warped into view 9722 | -5/Warlord | Spotted Striker 9734 | -5/Warlord | Spotted Striker 9774 | -5/Warlord | Lost 8 allies 9787 | -5/Warlord | Spotted Executioner 9810 | -5/Warlord | Spotted Executioner 9811 | -5/Warlord | Spotted Executioner 9815 | -5/Warlord | Identified Vortex Driver (x2) 9822 | -5/Warlord | Lost 3 parts (1p1n1w) 9851 | -5/Warlord | Spotted B-86 Titan 9859 | -5/Warlord | Destroyed by B-86 Titan with Hardcell Cannon Last Messages --------------- 09847_ The unstable cave ceiling collapses. 09850_ ANNOUNCEMENT: Detected 1 Grunt squad, 1 Demolisher squad, 1 Programmer squad, 1 Behemoth squad, with prototype support. 09850_ Slug penetrates Warlord. 09852_ HV Slug penetrates B-86 Titan. 09852_ Slug penetrates Warlord. 09852_ Warlord suffers critical hit (Destroy). 09853_ The unstable cave ceiling collapses. 09853_ Warlord: "IMPOSS00101101 01101001 01010111 01001001 01001100 01001100 01110010 01100101 01110100 01110101 01110010 01101110" 09853_ Warlord destroyed. 09853_ P-80 Master repels hacking attempt. 09854_ P-80 Master resets B-86 Titan, system corruption cleaned. 09854_ Jacked B-86 Titan... >>parse_system Reading system data... 09855_ The unstable cave ceiling collapses. Map ----- +----------------------------------------------------+ | #### #?????????????????????????????????? | | #??# #?????????????????????????????????? | | #??# #?????????????????????????????????? | | #??# #?????????????????????????????????? | | #??# #?????????????????????????????????? | | #??# #?????????????????????????????????? | | #### #?????????????????????????????????? | | # #?????????????????????????????????? | | # #?????????????????????????????????? | | + #?????????????????????????????????? | | # #?????????????????????????????????? | | # #?????????????????????????????????? | | #########??????????????# ?????#???????????? | | #??????????????????????# ??### ??????????? | | #??????????????????????? ?? ???????##?? | | #???????????????????????? ### ?#???? #?? | | #????????????????????????? "#???? ??? | | ####???""######????????????# %=#???? ??? | | ??##"" # ###??????????# % ##??? #?? | | % #####"" ## # ############" [ "#??? #?? | | #### ""### # ## ## ## #??? ##? | | # # ""## # # ### ## # ##?? ?? | | "" ### ### ## ## # "" #?? | | # "" ### = #??? | | # %! # ## #%= ???? | | *!!= @ %! =* BB ?? | | % =%=%= %% %!%%%[ g i#??? | | [*! %*! !% %## #??? | | =%= [!=% ## #??? | | # " !* # % # # ; ##?? | | # "" ## #; #?? | | ! "" ;# ## ### ## # # # #?? | | # "" # ## ## ### ## ### #?? | | # # # ""# ########## % ## #?? | | ## # ""###?????????### ## ##?? | | #######""#??????????????#"" ""## #??? | | #?????#""#????????????### " ### ##??? | | #??????""#????????????# # #?## #???? | | #??????#??????????????## % #??# #???? | | #?????????????????????# ! #???## ##??? | | #?????????????????????# " "#????## #??? | | #?????????????????????##" / ##??## #??? | | #?????????????????????#" %% ##?# #??? | | ###??????????????????####" "" #?# #??? | | ????????????????????## # #"## ## #??? | | ????????????????????# ##?# ## #??? | | ????????????????????# ##?? ## ##??? | | ????????????????????# ## #??? #???? | | ????????????????????###### #????# ##???? | | ????????????????????????# ##?????#####????? | +----------------------------------------------------+ Best States ------------- Heat Dissipation 64 Energy Generation 19 Energy Capacity 300 Matter Stores 400 Matter Capacity 400 Sight Range 18 Terrain Scan Range 16 Terrain Scan Density 10 Cloak Strength 2 Additional Mass Support 6 Armor Coverage 1575 Resistance: KI 40 Utility Shielding 15 Phase Shifting 5 Evasion (%) 63 Launcher Accuracy 20 Target Analysis 8 Recoil Reduction 2 Matter Filtering 50 Kinecelleration 30 Salvage Targeting 12 Offensive Hacking 14 Item Schematics ----------------- None Robot Schematics ------------------ None Fabricated ------------ Nothing Repaired ---------- Nothing Studied --------- Imp. Grenade Launcher | -8/Materials | Hacked Hvy. Missile Launcher | -5/Factory | Hacked Lrn. Missile Launcher | -5/Factory | Hacked Alien Tech Used ----------------- None Achievements -------------- Insider Info Packrat Challenges ------------ None Game ------ Seed ArcsightAntimissilePurifier Manual? 0 Play Time 01:29:18 Cumulative 118.8 hours Start 2026.02.19 @ 15:22:38 End 2026.02.20 @ 07:04:58 Sessions 3 Manual Loads 0 Difficulty Rogue Special Mode None Game No. 78 Rogue 74 Adventurer 4 Explorer 0 Win Type - Total 5 Types 5/0/0/0/0/0/0/0/0/0 Lore% 71 Gallery% 52 Achievement% 43 Wizard Run 0 Options --------- Layout 2 ASCII 0 Keyboard 1 Movement Vi Keybinds 0 Fullscreen 2 Font 24/Smallcaps Map View 50x44 Zoom Use 0% Tactical HUD 1 Map Filters NONE Filters NONE Steam 1 RUN: 7ccad49b-ae6c-409b-b8c3-af6eb8ba1165